Cogmind - Beta 13 @@@ ROGUE MODE // 2024.07.20 @ 13:34:33 Player: Sooty Result: Destroyed by as-12433 with Assembled Heavy Rifle Performance ------------- Evolutions (1) 500 Regions Visited (3) 600 Robots Destroyed (34) 170 Value Destroyed (780) 780 Prototype IDs (1) 20 Alien Tech Used (0) 0 Bonus (77) 77 TOTAL SCORE: 2147 Bonus ------- High Alert Combat Kills 77 Cogmind --------- Core Integrity 0/400 Matter 180/300 Energy 308/350 System Corruption 4% Temperature Cool (0) Movement Treading (160) Location -9/Mines Parts ------- > --- POWER (1) -------- Ion Engine > --- PROPULSION (2) --- Light Treads > --- UTILITY (4) ------ Heat Sink Small Battery Targeting Computer > --- WEAPON (2) ------- EM Shotgun > --- INVENTORY (5) ---- Beam Rifle Beam Rifle Beam Rifle Mini Grenade Launcher Mining Laser Peak State ------------ > --- POWER ------------ Ion Engine > --- PROPULSION ------- Light Treads Light Treads > --- UTILITY ---------- Heat Sink Cooling System Weight Redist. System > --- WEAPON ----------- Beam Rifle Beam Rifle > --- INVENTORY -------- Ion Engine Heavy Assault Rifle Mini Grenade Launcher [Rating: 12] Favorites ----------- Power Ion Engine Engine Ion Engine Propulsion Light Treads Treads Light Treads Wheel Wheel Flight Unit Flight Unit Utility Heat Sink Device Heat Sink Storage Small Storage Unit Processor Targeting Computer Weapon Beam Rifle Energy Gun Beam Rifle Ballistic Gun Heavy Assault Rifle Ballistic Cannon Light Cannon Launcher Mini Grenade Launcher Build | -11 -10 -9 -9 ------- Run | Yrd Mat Mat Min Slots Evolved 2 | . . 2 . Power . | . . . . Propulsion . | . . . . Utility 2 | . . 2 . Weapon . | . . . . Parts Attached 36 | 5 1 28 2 Power 6 | 1 . 5 . Engine 6 | 1 . 5 . Core . | . . . . Reactor . | . . . . Propulsion 7 | 2 . 5 . Treads 4 | . . 4 . Leg . | . . . . Wheel 2 | 2 . . . Hover . | . . . . Flight 1 | . . 1 . Utility 6 | 1 . 5 . Device 3 | . . 3 . Storage 2 | 1 . 1 . Processor 1 | . . 1 . Hackware . | . . . . Protection . | . . . . Artifact . | . . . . Weapon 17 | 1 1 13 2 Energy Gun 9 | 1 . 7 1 Energy Cannon . | . . . . Ballistic Gun 2 | . . 2 . Ballistic Cannon 1 | . 1 . . Launcher 5 | . . 4 1 Special Weapon . | . . . . Impact Weapon . | . . . . Slashing Weapon . | . . . . Piercing Weapon . | . . . . Special Melee Weapon . | . . . . Unidentified Prototypes 1 | . . 1 . Parts Lost 11 | . . 11 . Power 2 | . . 2 . Propulsion 3 | . . 3 . Utility 1 | . . 1 . Weapon 5 | . . 5 . Highest Loss Streak 7 | . . 7 . To Critical Strikes . | . . . . Average Slot Usage (%) 61 | . 77 58 71 Engine 10 | . 14 9 11 Treads 8 | . . 9 11 Wheel 6 | . 28 3 . Device 10 | . . 11 11 Storage 4 | . 14 3 11 Processor 3 | . . 4 11 Energy Gun 9 | . 14 8 16 Ballistic Gun 3 | . . 4 . Ballistic Cannon 2 | . 6 1 . Naked Turns . | . . . . Heaviest Build 14 | 11 14 14 13 Greatest Support 46 | 20 20 46 20 Greatest Overweight (x) 2 | . . 2 . Average Overweight (x) . | . . . . Largest Inventory Capacity 8 | 8 8 8 5 Average Capacity 5 | 5 8 5 5 Most Carried 5 | 5 4 5 5 Average Carried 3 | 2 2 3 4 Final Capacity 8 | 8 8 5 5 Final Carried 5 | 2 3 4 5 Class Distribution -------------------- 67% | Mutant 32% | Scavenger-Mutant Dominant Class ---------------- Mutant | -10/Materials Mutant | -9/Materials Mutant | -9/Mines Resources | -11 -10 -9 -9 ----------- Run | Yrd Mat Mat Min Matter Collected 704 | 178 15 511 . Remotely . | . . . . Salvage Created 793 | . 15 760 18 Parts 61 | . 3 58 . Haulers Intercepted 2 | . . 2 . Recyclers Shooed 5 | . . 5 . Parts Field Recycled . | . . . . Retrieved Matter . | . . . . Parts Self-Destructed . | . . . . Prevented . | . . . . Kills | -11 -10 -9 -9 ------- Run | Yrd Mat Mat Min Combat Hostiles Destroyed 27 | . . 26 1 Guns 15 | . . 14 1 Cannons 2 | . . 2 . AOE 10 | . . 10 . Classes Destroyed 10 | . 1 8 1 Tunneler 1 | . . 1 . Hauler 2 | . . 2 . Recycler 1 | . . 1 . Watcher 4 | . 1 3 . Swarmer 11 | . . 11 . Grunt 9 | . . 9 . Brawler 1 | . . 1 . Duelist 1 | . . 1 . Sentry 4 | . . 4 . Assembled 1 | . . . 1 Best Kill Streak 7 | . 1 7 1 Combat Bots Only 7 | . . 7 1 Max Kills in Single Turn 5 | . 1 5 1 Gunslinging . | . . . . Exploded 4 | . . 4 . Melee . | . . . . Uniques/NPCs Destroyed . | . . . . Combat | -11 -10 -9 -9 -------- Run | Yrd Mat Mat Min Hostile Shots Fired 149 | . . 148 1 Missed 33 | . . 33 . Damage Taken 1550 | . 12 1523 15 Core 418 | . 12 391 15 Absorbed by Shields . | . . . . Core Remaining (%) 97 | 100 95 . . Volleys Fired 87 | . 8 76 3 Largest 2 | . 2 2 1 Hottest 112 | . 75 112 45 Shots Fired 121 | . 11 107 3 Gun 90 | . 8 79 3 Cannon 18 | . 3 15 . Launcher 13 | . . 13 . Special . | . . . . Kinetic 54 | . 3 51 . Thermal 51 | . 8 43 . Explosive 13 | . . 13 . Electromagnetic 3 | . . . 3 Robot Hit Streak 13 | . 4 13 5 Robot Miss Streak 3 | . 2 3 1 Penetration Max . | . . . . Secondary Targets . | . . . . Shots Hit Robots 81 | . 7 71 3 Core Hits 59 | . 2 53 4 Critical Kills . | . . . . Critical Parts Destroyed . | . . . . Critical Strikes 2 | . . 2 . Burn 1 | . . 1 . Blast 1 | . . 1 . Melee Attacks . | . . . . Impact . | . . . . Slashing . | . . . . Piercing . | . . . . Sneak Attacks . | . . . . Combat Hostiles . | . . . . Follow-up Attacks . | . . . . Damage Inflicted 1872 | . 86 1744 42 Guns 802 | . 51 709 42 Cannons 233 | . 35 198 . Explosions 837 | . . 837 . Melee . | . . . . Ramming . | . . . . Kinetic 601 | . 35 566 . Thermal 392 | . 51 341 . Explosive 837 | . . 837 . Electromagnetic 42 | . . . 42 Impact . | . . . . Slashing . | . . . . Piercing . | . . . . Highest Corruption 4 | . . 4 4 Average Corruption 4 | . . 4 4 Corruption Purged . | . . . . Corruption Blocked . | . . . . Effects 6 | . . 6 . Message Errors 3 | . . 3 . Matter Fused 1 | . . 1 . Energy Discharges 1 | . . 1 . Misfires 1 | . . 1 . Overload Shots . | . . . . Overflow Damage 41 | . . 41 . Projectiles . | . . . . Explosions 41 | . . 41 . Melee . | . . . . Knockbacks 3 | . . 3 . Impact . | . . . . Kinetic 3 | . . 3 . Secondary . | . . . . Self-Inflicted Damage 150 | . . 150 . Shots 5 | . . 5 . Rammed . | . . . . Targets Rammed . | . . . . Kicked . | . . . . Crushed . | . . . . Highest Temperature 114 | . 30 114 . Average Temperature 40 | . 16 43 . Received Heat Transfer 375 | . . 375 . Siege Activations . | . . . . Robots Corrupted . | . . . . Combat Hostiles . | . . . . Parts Fried . | . . . . Impact Corruptions . | . . . . Robots Melted . | . . . . Combat Hostiles . | . . . . Parts Melted 3 | . . 3 . Heat Transferred 1044 | . 125 919 . Parts Sabotaged . | . . . . Parts Stolen . | . . . . Parts Stripped . | . . . . Power Chain Reactions . | . . . . Alert | -11 -10 -9 -9 ------- Run | Yrd Mat Mat Min Peak Influence 656 | . 22 656 237 Initial 237 | . . 9 237 Average 326 | . 11 402 237 Maximum Alert Level 2 | . . 2 1 Low Security (%) 34 | 100 100 20 . Level 1 22 | . . 25 100 Level 2 42 | . . 54 . Level 3 . | . . . . Level 4 . | . . . . Level 5 . | . . . . High Security . | . . . . Max Security . | . . . . Squads Dispatched 2 | . . 2 . Investigation . | . . . . Extermination . | . . . . Reinforcement 2 | . . 2 . Assault . | . . . . Garrison . | . . . . Intercept . | . . . . Searches Triggered . | . . . . Construction Impeded 1 | . . 1 . Haulers Reinforced . | . . . . Active Scanning Responses . | . . . . Cargo Convoy Interrupts . | . . . . Stealth | -11 -10 -9 -9 --------- Run | Yrd Mat Mat Min Distress Signals 1 | . . 1 . Communications Jammed . | . . . . Distress Signals . | . . . . Times Spotted 44 | . 1 35 8 Peak Tracking Total 10 | . 1 8 10 Tactical Retreats 2 | . . 2 . Traps | -11 -10 -9 -9 ------- Run | Yrd Mat Mat Min Traps Triggered 2 | . 1 1 . Indirectly . | . . . . Trap Hack Attempts . | . . . . Triggered . | . . . . Disarmed . | . . . . Reprogrammed . | . . . . Reused . | . . . . Traps Extracted . | . . . . Installed . | . . . . Triggered . | . . . . Machines | -11 -10 -9 -9 ---------- Run | Yrd Mat Mat Min Machines Disabled 2 | . . 2 . Max in Single Turn 1 | . . 1 . Machines Repaired . | . . . . Machines Dismantled . | . . . . Machines Sabotaged . | . . . . Overloaded Fab Kills . | . . . . Hacking | -11 -10 -9 -9 --------- Run | Yrd Mat Mat Min Machines Accessed 1 | . 1 . . Terminals . | . . . . Fabricators . | . . . . Repair Stations . | . . . . Recycling Units 1 | . 1 . . Scanalyzers . | . . . . Garrison Access . | . . . . Total Hacks 1 | . 1 . . Successful 1 | . 1 . . Failed . | . . . . Catastrophic . | . . . . Database Lockouts . | . . . . Manual . | . . . . Terminals . | . . . . Fabricators . | . . . . Repair Stations . | . . . . Recycling Units 1 | . 1 . . Scanalyzers . | . . . . Garrison Access . | . . . . Terminal Hacks . | . . . . Fabricator Hacks . | . . . . Repair Station Hacks . | . . . . Recycling Unit Hacks 1 | . 1 . . Report Inventory 1 | . 1 . . Scanalyzer . | . . . . Garrison Access Hacks . | . . . . Unauthorized Hacks . | . . . . Terminals . | . . . . Fabricators . | . . . . Repair Stations . | . . . . Recycling Units . | . . . . Scanalyzers . | . . . . Garrison Access . | . . . . Data Cores Recovered . | . . . . Used . | . . . . Hacking Detections . | . . . . Full Trace Events . | . . . . Feedback Events . | . . . . Feedback Blocked . | . . . . Robot Schematics Acquired . | . . . . Robots Built . | . . . . Authchips . | . . . . Time . | . . . . Total Robot Build Rating . | . . . . Part Schematics Acquired . | . . . . Parts Built . | . . . . Authchips . | . . . . Time . | . . . . Total Part Build Rating . | . . . . Parts Repaired . | . . . . Time . | . . . . Parts Recycled . | . . . . Recycled Matter . | . . . . Retrieved Matter . | . . . . Retrieved Components . | . . . . Parts Scanalyzed . | . . . . Part Schematics Acquired . | . . . . Parts Damaged . | . . . . Bothacking | -11 -10 -9 -9 ------------ Run | Yrd Mat Mat Min Used RIF Installer . | . . . . Robots Hacked . | . . . . Non-combat . | . . . . Combat . | . . . . Robot Hacks Applied . | . . . . Relay Couplers Released . | . . . . Fabnet Peak Effective % . | . . . . Robots Rewired . | . . . . Allies Hacked . | . . . . Hacks Repelled . | . . . . Allies | -11 -10 -9 -9 -------- Run | Yrd Mat Mat Min Total Allies . | . . . . Largest Group . | . . . . Highest-Rated Group . | . . . . Highest-Rated Ally . | . . . . Total Orders . | . . . . Ally Attacks . | . . . . Total Damage . | . . . . Kills . | . . . . Allies Corrupted . | . . . . Allies Melted . | . . . . Intel | -11 -10 -9 -9 ------- Run | Yrd Mat Mat Min Robot Analysis Total . | . . . . Derelict Logs Recovered . | . . . . Drone Launches . | . . . . Drone Recoveries . | . . . . Exploration | -11 -10 -9 -9 ------------- Run | Yrd Mat Mat Min Turns Passed 724 | 42 90 574 18 Spaces Moved 412 | 40 85 282 5 Core 31 | 7 . 24 . Treads 145 | . . 140 5 Legs . | . . . . Wheels 164 | 33 85 46 . Hover . | . . . . Flight 72 | . . 72 . Fastest Speed 40 | 50 80 40 160 Average Speed 104 | 74 80 115 160 Slowest Speed 160 | 80 80 160 160 Overloaded Moves . | . . . . Propulsion Burnouts . | . . . . Robots Hopped . | . . . . Cave-ins Triggered . | . . . . Exploration Rate (%) 15 | 4 25 31 3 Regions Visited 3 Branch Regions 1 Pre-discovered Areas . | . . . . Known Exits Taken . | . . . . Unknown Exits Taken 3 | 1 1 1 . Scrap Searched . | . . . . Spaces Dug . | . . . . Terrain Destroyed 92 | . . 92 . Melee . | . . . . Projectile . | . . . . AOE 92 | . . 92 . Terrain Rammed . | . . . . Walls Destroyed . | . . . . Machines Disabled . | . . . . Actions | -11 -10 -9 -9 --------- Run | Yrd Mat Mat Min Total 589 | 51 95 430 13 Wait 6 | . . 5 1 Move 409 | 39 84 281 5 Hop . | . . . . Pick Up 35 | 7 2 26 . Fast Attach . | . . . . Attach 31 | 5 1 24 1 Detach 7 | . . 5 2 Swap 5 | . . 4 1 Drop 9 | . . 9 . Fire 87 | . 8 76 3 Melee . | . . . . Ram . | . . . . Kick . | . . . . Crush . | . . . . Escape Stasis . | . . . . Rewire . | . . . . Trap . | . . . . Miscellaneous . | . . . . Route ------- -11/Scrapyard -10/Materials (discovered 2 exits: [*Mat] / [*Min]) -9/Materials -9/Mines History --------- Turn | Location | Event 12 | -11/Scrapyard | Discovered new exit (range 16) 43 | -11/Scrapyard | Entered Materials 91 | -10/Materials | Discovered new exit (range 14) 119 | -10/Materials | Discovered new exit (range 12) 133 | -10/Materials | Entered another Materials area 133 | -9/Materials | Evolved 2 slots: Utility x2 250 | -9/Materials | Core integrity fell below 50% 307 | -9/Materials | Lost 7 parts (1p2n4w) 351 | -9/Materials | Build established: Mutant 472 | -9/Materials | Destroyed 7 combat bots 497 | -9/Materials | Core integrity fell below 20% 609 | -9/Materials | Lost 3 parts (1n1u1w) 628 | -9/Materials | Discovered new exit (range 16) 707 | -9/Materials | Entered Mines 708 | -9/Mines | Assembled infested the area 713 | -9/Mines | Assisted by a Guerilla fighting off Assembled 725 | -9/Mines | Destroyed by as-12433 with Assembled Heavy Rifle Last Messages --------------- GOAL=ESCAPE Something is scanning the area. 00708_ ALERT: Infestation in the mines, dispatching Demolisher response squad. 00708_ K-01 Serf collects debris. 00713_ A derelict emerges from the shadows: "You need to get out of here! I've been tracking a group of Assembled to figure out where they're coming from, and they're closing on this area, come on!" 00715_ K-01 Serf collects debris. 00716_ 2B-Q6P(h): "I'll hold them off! Go on ahead or try to find another way!" 00722_ as-18988 destroyed. 00723_ K-01 Serf system corrupted by crushing effect. 00723_ K-01 Serf destroyed. 00724_ K-01 Serf collects debris. 00724_ HV Slug penetrates as-40892. 00724_ as-40892 destroyed. Map ----- +----------------------------------------------------+ | | | | | | | | | | | | | | | | | | | | | | | ??????????????????????????????? | | ??????????????????????????????? | | ??????????????????????????????? | | ??????????????????????????????? | | ??????????????????????????????? | | ??????????????????????????????? | | ??????????????????????????????? | | ?????????????????????########?? | | ?????????????????????# #?? | | ?????????????????????# #?? | | ?????????????????????# #?? | | ?????????????????????# #?? | | ?????????????????????# #?? | | ?????????????????????# k #?? | | ?????????????????????####@###?? | | ????????????????????????#a#???? | | ????????????????????????#h;???? | | ????????????????????????#a%???? | | ????????????????????????#a# ??? | | ????????????????????????#a##??? | | ????????????????????????# ???? | | ????????????????????????#a ???? | | ???????????????????????? a ???? | | ???????????????????????? %???? | | ???????????????????????? ???? | | ????????????????????????#$#???? | | ????????????????????????? ????? | | ????????????????????????? ????? | | ????????????????????????? ????? | | ?????????????????????????#????? | | ??????????????????????????????? | | ??????????????????????????????? | | ??????????????????????????????? | | ??????????????????????????????? | | ??????????????????????????????? | | ??????????????????????????????? | | ??????????????????????????????? | | ??????????????????????????????? | | ??????????????????????????????? | +----------------------------------------------------+ Best States ------------- Heat Dissipation 60 Energy Generation 10 Energy Capacity 350 Matter Stores 300 Matter Capacity 300 Sight Range 16 Terrain Scan Density 10 Additional Mass Support 6 Evasion (%) 62 Targeting Accuracy 5 Recoil Reduction 2 Item Schematics ----------------- None Robot Schematics ------------------ None Fabricated ------------ Nothing Alien Tech Used ----------------- None Achievements -------------- None Challenges ------------ None Game ------ Seed CloakingTractorScrap Manual? 0 Play Time 00:14:17 Cumulative 14.5 hours Start 2024.07.20 @ 13:20:27 End 2024.07.20 @ 13:34:33 Sessions 1 Manual Loads 0 Difficulty Rogue Special Mode None Game No. 16 Rogue 16 Adventurer 0 Explorer 0 Win Type - Total 0 Types 0/0/0/0/0/0/0/0/0 Lore% 18 Gallery% 21 Achievement% 16 Wizard Run 0 Options --------- Layout 1 ASCII 0 Keyboard 0 Movement Mouse Keybinds 0 Fullscreen 1 Font 24/Terminus Map View 50x35 Zoom Use 0% Tactical HUD 1 Map Filters NONE Filters NONE Steam 1 RUN: 1d6bb7ac-f277-4521-a293-2a163cb4b987